fUST/lending_fUST_20240817
["ID","MTS","AMOUNT","RATE_DAILY","PERIOD"]
[335098088,1723824671057,-500.0,0.00044657,120]
[335098089,1723824671073,-10260.67,0.00044657,120]
[335098090,1723824671091,-500.0,0.00044657,120]
[335098091,1723824671107,-500.0,0.00044657,120]
[335098092,1723824671123,-500.0,0.00044657,120]
[335098093,1723824671139,-500.0,0.00044657,120]
[335098094,1723824671153,-500.0,0.00044657,120]
[335098095,1723824671167,-764.92,0.00044657,120]
[335098096,1723824671180,-500.0,0.00044657,120]
[335098097,1723824671195,-516.4109158,0.00044657,120]
[335098098,1723824671209,-2987.82,0.00044657,21]
[335098099,1723824671226,-716.98,0.00044657,120]
[335098100,1723824671240,-666.64,0.00044657,120]
[335098101,1723824671253,-1201.98,0.00044657,120]
[335098102,1723824671267,-637.84,0.00044657,120]
[335098103,1723824671283,-500.0,0.00044657,120]
[335098104,1723824671300,-2511.6,0.00044657,120]
[335098105,1723824671315,-500.0,0.00044657,120]
[335098106,1723824671329,-723.54,0.00044657,120]
[335098107,1723824671343,-576.16,0.00044657,120]
[335098108,1723824671357,-500.0,0.00044657,120]
[335098109,1723824671371,-500.0,0.00044657,120]
[335098110,1723824671386,-500.0,0.00044657,120]
[335098111,1723824671401,-1882.03,0.00044657,120]
[335098112,1723824671415,-500.0,0.00044657,120]
[335098113,1723824671429,-500.0,0.00044657,120]
[335098114,1723824671444,-1029.66,0.00044657,120]
[335098115,1723824671458,-1896.05,0.00044657,120]
[335098116,1723824671472,-815.8,0.00044657,120]
[335098117,1723824671487,-4568.8,0.00044657,120]
[335098118,1723824671501,-500.0,0.00044657,120]
[335098119,1723824671515,-500.0,0.00044657,120]
[335098120,1723824671530,-947.25,0.00044657,120]
[335098121,1723824671546,-797.6,0.00044657,120]
[335098122,1723824671561,-975.37,0.00044657,120]
[335098123,1723824671575,-500.0,0.00044657,120]
[335098124,1723824671589,-164.98311091,0.00044657,60]
[335098125,1723824671603,-500.0,0.00044657,120]
[335098126,1723824671618,-1724.04,0.00044657,120]
[335098127,1723824671631,-1061.46,0.00044657,120]
[335098128,1723824671646,-500.0,0.00044657,120]
[335098129,1723824671661,-848.93,0.00044657,120]
[335098130,1723824671675,-1146.8,0.00044657,120]
[335098131,1723824671689,-500.0,0.00044657,120]
[335098132,1723824671703,-500.0,0.00044657,120]
[335098133,1723824671717,-463.94704246,0.00044657,120]
[335098134,1723824671731,-500.0,0.00044657,120]
[335098135,1723824671874,-500.0,0.00044657,120]
[335098136,1723824671886,-500.0,0.00044657,120]
[335098137,1723824671896,-500.0,0.00044657,120]
[335098138,1723824671906,-979.65,0.00044657,120]
[335098139,1723824671916,-500.0,0.00044657,120]
[335098140,1723824671925,-500.0,0.00044657,120]
[335098141,1723824671935,-500.0,0.00044657,120]
[335098142,1723824671944,-500.0,0.00044657,120]
[335098143,1723824671954,-500.0,0.00044657,120]
[335098144,1723824671964,-894.36,0.00044657,120]
[335098145,1723824671973,-500.0,0.00044657,120]
[335098146,1723824671983,-500.0,0.00044657,120]
[335098147,1723824671992,-645.74,0.00044657,120]
[335098148,1723824672002,-641.42,0.00044657,120]
[335098149,1723824672011,-500.0,0.00044657,120]
[335098150,1723824672021,-500.0,0.00044657,120]
[335098151,1723824672031,-500.0,0.00044657,120]
[335098152,1723824672040,-1321.3,0.00044657,120]
[335098153,1723824672049,-500.0,0.00044657,120]
[335098154,1723824672058,-13031.02,0.00044657,120]
[335098155,1723824672068,-936.44,0.00044657,120]
[335098156,1723824672078,-500.0,0.00044657,120]
[335098157,1723824672089,-673.1,0.00044657,120]
[335098158,1723824672098,-526.95,0.00044657,120]
[335098159,1723824672107,-561.51,0.00044657,120]
[335098160,1723824672116,-500.0,0.00044657,120]
[335098161,1723824672126,-500.0,0.00044657,120]
[335098162,1723824672136,-500.0,0.00044657,120]
[335098163,1723824672145,-500.0,0.00044657,120]
[335098164,1723824672156,-500.0,0.00044657,120]
[335098165,1723824672166,-2425.41,0.00044657,120]
[335098166,1723824672176,-503.98663491,0.00044657,120]
[335098167,1723824672185,-641.46,0.00044657,120]
[335098168,1723824672195,-500.0,0.00044657,120]
[335098169,1723824672205,-1762.68,0.00044657,120]
[335098170,1723824672215,-500.0,0.00044657,120]
[335098171,1723824672228,-500.0,0.00044657,120]
[335098172,1723824672237,-500.0,0.00044657,120]
[335098173,1723824672247,-2314.36,0.00044657,120]
[335098174,1723824672257,-700.74,0.00044657,120]
[335098175,1723824672267,-666.41,0.00044657,120]
[335098176,1723824672276,-500.0,0.00044657,120]
[335098177,1723824672285,-1019.62,0.00044657,120]
[335098178,1723824672295,-664.99,0.00044657,120]
[335098179,1723824672306,-500.0,0.00044657,120]
[335098180,1723824672317,-839.23,0.00044657,120]
[335098181,1723824672327,-4725.59,0.00044657,120]
[335098182,1723824672337,-567.41,0.00044657,120]
[335098183,1723824672347,-833.73,0.00044657,120]
[335098184,1723824672356,-1124.87,0.00044657,120]
[335098185,1723824672366,-616.41,0.00044657,120]
[335098186,1723824672376,-500.0,0.00044657,120]
[335098187,1723824672386,-628.45,0.00044657,120]
[335098188,1723824672395,-500.0,0.00044657,120]
[335098189,1723824672405,-1015.36,0.00044657,120]
[335098190,1723824672415,-519.03,0.00044657,120]
[335098191,1723824672425,-463.286235,0.00044657,120]
[335098192,1723824672435,-707.5,0.00044657,120]
[335098193,1723824672444,-500.0,0.00044657,120]
[335098194,1723824672454,-6729.3,0.00044657,120]
[335098195,1723824672463,-500.0,0.00044657,120]
[335098196,1723824672473,-158.08,0.000447,30]
[335098197,1723824672482,-1207.5099,0.000447,2]
[335098198,1723824672492,-1400.0,0.00044853,4]
[335098199,1723824672501,-1413.0,0.00044867,2]
[335098200,1723824672511,-500.0,0.00044931,120]
[335098201,1723824672520,-500.0,0.00044931,120]
[335098202,1723824672531,-500.0,0.00044931,120]
[335098203,1723824672540,-500.0,0.00044931,120]
[335098204,1723824672550,-500.0,0.00044931,120]
[335098205,1723824672559,-500.0,0.00044931,120]
[335098206,1723824672569,-506.31320587,0.00044931,120]
[335098207,1723824672578,-2456.91,0.00044931,120]
[335098208,1723824672591,-500.0,0.00044931,120]
[335098209,1723824672600,-500.0,0.00044931,120]
[335098210,1723824672610,-605.42589004,0.00044931,120]
[335098211,1723824672619,-500.0,0.00044931,120]
[335098212,1723824672629,-500.0,0.00044931,120]
[335098213,1723824672638,-500.0,0.00044931,120]
[335098214,1723824672649,-522.24366812,0.00044931,120]
[335098215,1723824672660,-500.0,0.00044931,120]
[335098216,1723824672669,-500.0,0.00044931,120]
[335098217,1723824672679,-503.41,0.00044931,120]
[335098218,1723824672689,-538.2254011,0.00044931,120]
[335098219,1723824672699,-500.0,0.00044931,120]
[335098220,1723824672708,-500.0,0.00044931,120]
[335098221,1723824672718,-500.0,0.00044931,120]
[335098222,1723824672727,-500.0,0.00044931,120]
[335098223,1723824672737,-500.0,0.00044931,120]
[335098224,1723824672747,-500.0,0.00044931,120]
[335098225,1723824672756,-500.0,0.00044931,120]
[335098226,1723824672766,-500.0,0.00044931,120]
[335098227,1723824672775,-500.0,0.00044931,120]
[335098228,1723824672785,-500.0,0.00044931,120]
[335098229,1723824672795,-503.99254034,0.00044931,120]
[335098230,1723824672804,-500.0,0.00044931,120]
[335098231,1723824672814,-500.0,0.00044931,7]
[335098232,1723824672824,-590.69,0.00044931,120]
[335098233,1723824672834,-500.0,0.00044931,120]
[335098234,1723824672844,-494.94400411,0.00044931,120]
[335098235,1723824672854,-500.0,0.00044931,120]
[335098236,1723824672864,-507.71855378,0.00044931,120]
[335098237,1723824672873,-500.0,0.00044931,120]
[335098238,1723824672883,-500.0,0.00044931,30]
[335098239,1723824672893,-500.0,0.00044931,120]
[335098240,1723824672903,-500.0,0.00044931,120]
[335098241,1723824672913,-500.0,0.00044931,120]
[335098242,1723824672923,-645.31,0.00044931,120]
[335098243,1723824672933,-500.0,0.00044931,120]
[335098244,1723824672942,-512.51802137,0.00044931,120]
[335098245,1723824672952,-500.0,0.00044931,120]
[335098246,1723824672962,-500.0,0.00044931,120]
[335098247,1723824672972,-500.0,0.00044931,120]
[335098248,1723824672982,-500.0,0.00044931,120]
[335098249,1723824672991,-699.13,0.00044931,120]
[335098250,1723824673001,-565.92426714,0.00044931,120]
[335098251,1723824673010,-500.0,0.00044931,120]
[335098252,1723824673020,-500.0,0.00044931,120]
[335098253,1723824673029,-200.0,0.00044931,7]
[335098254,1723824673039,-644.7,0.00044931,120]
[335098255,1723824673048,-544.51,0.00044931,120]
[335098256,1723824673058,-500.0,0.00044931,120]
[335098257,1723824673067,-693.59,0.00044931,120]
[335098258,1723824673077,-2148.57,0.00044931,120]
[335098259,1723824673088,-548.58,0.00044931,120]
[335098260,1723824673096,-500.0,0.00044931,120]
[335098261,1723824673106,-500.0,0.00044931,120]
[335098262,1723824673116,-500.0,0.00044931,120]
[335098263,1723824673126,-618.16416755,0.00044931,120]
[335098264,1723824673135,-1328.88,0.00044931,120]
[335098265,1723824673144,-500.0,0.00044931,120]
[335098266,1723824673154,-500.0,0.00044931,120]
[335098267,1723824673163,-500.0,0.00044931,120]
[335098268,1723824673173,-500.0,0.00044931,120]
[335098269,1723824673183,-500.0,0.00044931,120]
[335098270,1723824673193,-500.0,0.00044931,120]
[335098271,1723824673202,-500.0,0.00044931,120]
[335098272,1723824673212,-635.25,0.00044931,120]
[335098273,1723824673224,-561.77939848,0.00044931,120]
[335098274,1723824673234,-500.0,0.00044931,120]
[335098275,1723824673243,-500.0,0.00044931,120]
[335098276,1723824673253,-1192.76,0.00044931,7]
[335098277,1723824673263,-500.0,0.00044931,120]
[335098278,1723824673273,-233.49523721,0.00044931,120]
[335098279,1723824673282,-316.15268151,0.00044931,120]
[335098280,1723824673292,-500.0,0.00044931,120]
[335098281,1723824673303,-500.0,0.00044931,120]
[335098282,1723824673313,-500.0,0.00044931,120]
[335098283,1723824673322,-1451.49,0.00044931,60]
[335098284,1723824673332,-500.0,0.00044931,120]
[335098285,1723824673344,-500.0,0.00044931,120]
[335098286,1723824673354,-500.0,0.00044931,120]
[335098287,1723824673363,-502.85588348,0.00044931,120]
[335098288,1723824673373,-500.0,0.00044931,120]
[335098289,1723824673383,-500.0,0.00044931,120]
[335098290,1723824673392,-918.61,0.00044931,120]
[335098291,1723824673401,-500.0,0.00044931,120]
[335098292,1723824673411,-596.74,0.00044931,120]
[335098293,1723824673421,-500.0,0.00044931,120]
[335098294,1723824673431,-500.0,0.00044931,120]
[335098295,1723824673440,-500.0,0.00044931,120]
[335098296,1723824673450,-500.0,0.00044931,120]
[335098297,1723824673460,-500.0,0.00044931,120]
[335098298,1723824673470,-547.91,0.00044931,120]
[335098299,1723824673479,-500.0,0.00044931,120]
[335098300,1723824673489,-500.0,0.00044931,120]
[335098301,1723824673498,-629.55,0.00044931,120]
[335098302,1723824673626,-643.97,0.00044931,120]
[335098303,1723824673636,-500.0,0.00044931,120]
[335098304,1723824673646,-500.0,0.00044931,120]
[335098305,1723824673656,-500.0,0.00044931,120]
[335098306,1723824673666,-500.0,0.00044931,120]
[335098307,1723824673675,-609.08,0.00044931,120]
[335098308,1723824673685,-1016.45,0.00044931,120]
[335098309,1723824673694,-788.01,0.00044931,120]
[335098310,1723824673704,-500.0,0.00044931,120]
[335098311,1723824673713,-500.0,0.00044931,120]
[335098312,1723824673723,-504.65288742,0.00044931,120]
[335098313,1723824673732,-518.24,0.00044931,120]
[335098314,1723824673741,-500.0,0.00044931,2]
[335098315,1723824673751,-520.20570351,0.00044931,120]
[335098316,1723824673761,-500.0,0.00044931,120]
[335098317,1723824673771,-894.34,0.00044931,120]
[335098318,1723824673781,-500.0,0.00044931,120]
[335098319,1723824673791,-500.0,0.00044931,120]
[335098320,1723824673801,-500.0,0.00044931,120]
[335098321,1723824673810,-500.0,0.00044931,120]
[335098322,1723824673820,-643.91,0.00044931,120]
[335098323,1723824673830,-900.79,0.00044931,120]
[335098324,1723824673841,-500.0,0.00044931,120]
[335098325,1723824673850,-884.47,0.00044931,120]
[335098326,1723824673860,-500.0,0.00044931,120]
[335098327,1723824673871,-500.0,0.00044931,120]
[335098328,1723824673882,-500.0,0.00044931,120]
[335098329,1723824673891,-737.86,0.00044931,120]
[335098330,1723824673901,-1177.09,0.00044931,120]
[335098331,1723824673912,-500.0,0.00044931,120]
[335098332,1723824673923,-500.0,0.00044931,120]
[335098333,1723824673934,-746.07,0.00044931,120]
[335098334,1723824673944,-507.88297151,0.00044931,120]
[335098335,1723824673954,-1036.78,0.00044931,120]
[335098336,1723824673964,-668.74,0.00044931,120]
[335098337,1723824673976,-500.0,0.00044931,120]
[335098338,1723824673988,-500.0,0.00044931,120]
[335098339,1723824674001,-586.69141645,0.00044931,120]
[335098340,1723824674013,-673.85,0.00044931,120]
[335098341,1723824674024,-500.0,0.00044931,120]
[335098342,1723824674034,-500.0,0.00044931,120]
[335098343,1723824674045,-500.0,0.00044931,120]
[335098344,1723824674056,-783.75,0.00044931,120]
[335098345,1723824674066,-902.95,0.00044931,120]
[335098346,1723824674076,-500.0,0.00044931,120]
[335098347,1723824674086,-500.0,0.00044931,120]
[335098348,1723824674097,-563.5,0.00044931,120]
[335098349,1723824674108,-500.0,0.00044931,120]
[335098350,1723824674118,-545.31,0.00044931,120]
[335098351,1723824674129,-631.65,0.00044931,120]
[335098352,1723824674139,-500.0,0.00044931,120]
[335098353,1723824674151,-1145.47,0.00044931,120]
[335098354,1723824674163,-515.22172187,0.00044931,120]
[335098355,1723824674173,-500.0,0.00044931,120]
[335098356,1723824674183,-901.73,0.00044931,120]
[335098357,1723824674192,-500.0,0.00044931,120]
[335098358,1723824674202,-10260.67,0.00044931,120]
[335098359,1723824674213,-396.85529885,0.00044931,120]
[335098360,1723824674226,-500.0,0.00044931,120]
[335098361,1723824674236,-500.0,0.00044931,120]
[335098362,1723824674246,-500.0,0.00044931,120]
[335098363,1723824674255,-500.0,0.00044931,120]
[335098364,1723824674266,-764.92,0.00044931,120]
[335098365,1723824674276,-500.0,0.00044931,120]
[335098366,1723824674286,-2987.82,0.00044931,21]
[335098367,1723824674296,-716.98,0.00044931,120]
[335098368,1723824674306,-666.64,0.00044931,120]
[335098369,1723824674315,-1201.98,0.00044931,120]
[335098370,1723824674325,-637.84,0.00044931,120]
[335098371,1723824674334,-500.0,0.00044931,120]
[335098372,1723824674347,-2511.6,0.00044931,120]
[335098373,1723824674357,-500.0,0.00044931,120]
[335098374,1723824674367,-723.54,0.00044931,120]
[335098375,1723824674376,-576.16,0.00044931,120]
[335098376,1723824674386,-500.0,0.00044931,120]
[335098377,1723824674395,-500.0,0.00044931,120]
[335098378,1723824674404,-500.0,0.00044931,120]
[335098379,1723824674414,-1882.03,0.00044931,120]
[335098380,1723824674423,-509.94408806,0.00044931,120]
[335098381,1723824674433,-510.70393132,0.00044931,120]
[335098382,1723824674442,-1029.66,0.00044931,120]
[335098383,1723824674452,-1896.05,0.00044931,120]
[335098384,1723824674461,-815.8,0.00044931,120]
[335098385,1723824674471,-4568.8,0.00044931,120]
[335098386,1723824674480,-500.0,0.00044931,120]
[335098387,1723824674489,-500.0,0.00044931,120]
[335098388,1723824674499,-947.25,0.00044931,120]
[335098389,1723824674508,-975.37,0.00044931,120]
[335098390,1723824674518,-797.6,0.00044931,120]
[335098391,1723824674527,-500.0,0.00044931,120]
[335098392,1723824674537,-500.0,0.00044931,120]
[335098393,1723824674547,-1724.04,0.00044931,120]
[335098394,1723824674557,-1061.46,0.00044931,120]
[335098395,1723824674567,-500.0,0.00044931,120]
[335098396,1723824674576,-848.93,0.00044931,120]
[335098397,1723824674586,-1146.8,0.00044931,120]
[335098398,1723824674597,-500.0,0.00044931,120]
[335098399,1723824674606,-500.0,0.00044931,120]
[335098400,1723824674616,-500.0,0.00044931,120]
[335098401,1723824674626,-500.0,0.00044931,120]
[335098402,1723824674636,-500.0,0.00044931,120]
[335098403,1723824674646,-500.0,0.00044931,120]
[335098404,1723824674655,-979.65,0.00044931,120]
[335098405,1723824674666,-500.0,0.00044931,120]
[335098406,1723824674675,-500.0,0.00044931,120]
[335098407,1723824674685,-500.0,0.00044931,120]
[335098408,1723824674694,-500.0,0.00044931,120]
[335098409,1723824674703,-894.36,0.00044931,120]
[335098410,1723824674713,-500.0,0.00044931,120]
[335098411,1723824674723,-500.0,0.00044931,120]
[335098412,1723824674732,-645.74,0.00044931,120]
[335098413,1723824674742,-641.42,0.00044931,120]
[335098414,1723824674752,-500.0,0.00044931,120]
[335098415,1723824674761,-269.93113877,0.00044931,120]
[335098416,1723824674770,-1321.3,0.00044931,120]
[335098417,1723824674780,-500.0,0.00044931,120]
[335098418,1723824674789,-13031.02,0.00044931,120]
[335098419,1723824674800,-936.44,0.00044931,120]
[335098420,1723824674809,-262.57,0.00044931,120]
[335098421,1723824674820,-673.1,0.00044931,120]
[335098422,1723824674831,-526.95,0.00044931,120]
[335098423,1723824674842,-561.51,0.00044931,120]
[335098424,1723824674851,-500.0,0.00044931,120]
[335098425,1723824674861,-500.0,0.00044931,120]
[335098426,1723824674870,-500.0,0.00044931,120]
[335098427,1723824674880,-500.0,0.00044931,120]
[335098428,1723824674890,-500.0,0.00044931,120]
[335098429,1723824674900,-641.46,0.00044931,120]
[335098430,1723824674910,-2425.41,0.00044931,120]
[335098431,1723824674920,-505.25458433,0.00044931,120]
[335098432,1723824674930,-1762.68,0.00044931,120]
[335098433,1723824674940,-500.0,0.00044931,120]
[335098434,1723824674950,-500.0,0.00044931,120]
[335098435,1723824674959,-500.0,0.00044931,120]
[335098436,1723824674969,-2314.36,0.00044931,120]
[335098437,1723824674978,-700.74,0.00044931,120]
[335098438,1723824674988,-666.41,0.00044931,120]
[335098439,1723824674997,-1019.62,0.00044931,120]
[335098440,1723824675007,-500.0,0.00044931,120]
[335098441,1723824675016,-664.99,0.00044931,120]
[335098442,1723824675026,-509.31374436,0.00044931,120]
[335098443,1723824675035,-839.23,0.00044931,120]
[335098444,1723824675045,-4725.59,0.00044931,120]
[335098445,1723824675054,-567.41,0.00044931,120]
[335098446,1723824675064,-833.73,0.00044931,120]
[335098447,1723824675073,-1124.87,0.00044931,120]
[335098448,1723824675082,-616.41,0.00044931,120]
[335098449,1723824675092,-500.0,0.00044931,120]
[335098450,1723824675102,-628.45,0.00044931,120]
[335098451,1723824675114,-500.0,0.00044931,120]
[335098452,1723824675123,-1015.36,0.00044931,120]
[335098453,1723824675133,-519.03,0.00044931,120]
[335098454,1723824675142,-707.5,0.00044931,120]
[335098455,1723824675235,-500.0,0.00044931,120]
[335098456,1723824675247,-6729.3,0.00044931,120]
[335098457,1723824675259,-500.0,0.00044931,120]
[335098458,1723824675270,-166.492773,0.00044932,2]
[335098459,1723824675279,-119017.009211,0.00045,10]
[335098460,1723824675288,-1148.0,0.00045,120]
[335098461,1723824675298,-200.0,0.00045,60]
[335098462,1723824675309,-500.0,0.00045,7]
[335098463,1723824675319,-1396.76273472,0.00045137,2]
[335098464,1723824675329,-500.0,0.00045205,120]
[335098465,1723824675340,-500.0,0.00045205,120]
[335098466,1723824675349,-500.0,0.00045205,120]
[335098467,1723824675358,-500.0,0.00045205,120]
[335098468,1723824675367,-394.20525018,0.00045205,120]
[335098469,1723824675377,-509.91662755,0.00045205,120]
[335098470,1723824675386,-2456.91,0.00045205,120]
[335098471,1723824675396,-500.0,0.00045205,120]
[335098472,1723824675405,-393.50000001,0.00045205,120]
[335098473,1723824675414,-500.0,0.00045205,120]
[335098474,1723824675423,-503.62601235,0.00045205,120]
[335098475,1723824675433,-500.0,0.00045205,120]
[335098476,1723824675442,-500.0,0.00045205,120]
[335098477,1723824675451,-503.41,0.00045205,120]
[335098478,1723824675460,-500.0,0.00045205,120]
[335098479,1723824675469,-561.78567688,0.00045205,120]
[335098480,1723824675479,-500.0,0.00045205,120]
[335098481,1723824675488,-500.0,0.00045205,120]
[335098482,1723824675498,-467.8082394,0.00045205,120]
[335098483,1723824675507,-513.42721973,0.00045205,120]
[335098484,1723824675516,-500.0,0.00045205,120]
[335098485,1723824675526,-500.0,0.00045205,120]
[335098486,1723824675535,-500.0,0.00045205,120]
[335098487,1723824675544,-500.0,0.00045205,120]
[335098488,1723824675554,-500.0,0.00045205,7]
[335098489,1723824675563,-590.69,0.00045205,120]
[335098490,1723824675572,-500.0,0.00045205,120]
[335098491,1723824675581,-507.52049506,0.00045205,120]
[335098492,1723824675590,-500.0,0.00045205,120]
[335098493,1723824675600,-500.0,0.00045205,30]
[335098494,1723824675609,-500.0,0.00045205,120]
[335098495,1723824675618,-500.0,0.00045205,120]
[335098496,1723824675627,-500.0,0.00045205,120]
[335098497,1723824675636,-645.31,0.00045205,120]
[335098498,1723824675645,-500.0,0.00045205,120]
[335098499,1723824675655,-500.0,0.00045205,120]
[335098500,1723824675664,-500.0,0.00045205,120]
[335098501,1723824675674,-500.0,0.00045205,120]
[335098502,1723824675684,-500.0,0.00045205,120]
[335098503,1723824675693,-699.13,0.00045205,120]
[335098504,1723824675703,-500.0,0.00045205,120]
[335098505,1723824675714,-500.0,0.00045205,120]
[335098506,1723824675725,-200.0,0.00045205,7]
[335098507,1723824675736,-644.7,0.00045205,120]
[335098508,1723824675746,-544.51,0.00045205,120]
[335098509,1723824675756,-581.12412968,0.00045205,120]
[335098510,1723824675767,-693.59,0.00045205,120]
[335098511,1723824675777,-2148.57,0.00045205,120]
[335098512,1723824675788,-548.58,0.00045205,120]
[335098513,1723824675798,-500.0,0.00045205,120]
[335098514,1723824675809,-500.0,0.00045205,120]
[335098515,1723824675821,-1328.88,0.00045205,120]
[335098516,1723824675831,-500.0,0.00045205,120]
[335098517,1723824675842,-500.0,0.00045205,120]
[335098518,1723824675851,-203.86122019,0.00045205,120]
[335098519,1723824675861,-500.0,0.00045205,120]
[335098520,1723824675871,-500.0,0.00045205,120]
[335098521,1723824675881,-500.0,0.00045205,120]
[335098522,1723824675891,-500.0,0.00045205,120]
[335098523,1723824675900,-635.25,0.00045205,120]
[335098524,1723824675910,-500.0,0.00045205,120]
[335098525,1723824675920,-500.0,0.00045205,120]
[335098526,1723824675929,-1192.76,0.00045205,7]
[335098527,1723824675938,-500.0,0.00045205,120]
[335098528,1723824675947,-500.0,0.00045205,120]
[335098529,1723824675957,-511.37399161,0.00045205,120]
[335098530,1723824675966,-500.0,0.00045205,120]
[335098531,1723824675975,-1451.49,0.00045205,60]
[335098532,1723824675984,-500.0,0.00045205,120]
[335098533,1723824675993,-500.0,0.00045205,120]
[335098534,1723824676002,-500.0,0.00045205,120]
[335098535,1723824676012,-500.0,0.00045205,120]
[335098536,1723824676021,-500.0,0.00045205,120]
[335098537,1723824676030,-918.61,0.00045205,120]
[335098538,1723824676039,-500.0,0.00045205,120]
[335098539,1723824676048,-596.74,0.00045205,120]
[335098540,1723824676057,-500.0,0.00045205,120]
[335098541,1723824676066,-500.0,0.00045205,120]
[335098542,1723824676077,-500.0,0.00045205,120]
[335098543,1723824676087,-500.0,0.00045205,120]
[335098544,1723824676101,-500.0,0.00045205,120]
[335098545,1723824676111,-547.91,0.00045205,120]
[335098546,1723824676121,-500.0,0.00045205,120]
[335098547,1723824676132,-629.55,0.00045205,120]
[335098548,1723824676142,-643.97,0.00045205,120]
[335098549,1723824676151,-500.0,0.00045205,120]
[335098550,1723824676161,-500.0,0.00045205,120]
[335098551,1723824676169,-500.0,0.00045205,120]
[335098552,1723824676179,-500.0,0.00045205,120]
[335098553,1723824676188,-609.08,0.00045205,120]
[335098554,1723824676198,-1016.45,0.00045205,120]
[335098555,1723824676207,-788.01,0.00045205,120]
[335098556,1723824676216,-500.0,0.00045205,120]
[335098557,1723824676228,-500.0,0.00045205,120]
[335098558,1723824676238,-518.24,0.00045205,120]
[335098559,1723824676247,-500.0,0.00045205,2]
[335098560,1723824676256,-500.0,0.00045205,120]
[335098561,1723824676267,-894.34,0.00045205,120]
[335098562,1723824676277,-500.0,0.00045205,120]
[335098563,1723824676286,-500.0,0.00045205,120]
[335098564,1723824676295,-505.06206412,0.00045205,120]
[335098565,1723824676305,-500.0,0.00045205,120]
[335098566,1723824676314,-643.91,0.00045205,120]
[335098567,1723824676324,-900.79,0.00045205,120]
[335098568,1723824676334,-500.0,0.00045205,120]
[335098569,1723824676347,-884.47,0.00045205,120]
[335098570,1723824676357,-500.0,0.00045205,120]
[335098571,1723824676367,-500.0,0.00045205,120]
[335098572,1723824676377,-500.0,0.00045205,120]
[335098573,1723824676387,-737.86,0.00045205,120]
[335098574,1723824676397,-1177.09,0.00045205,120]
[335098575,1723824676406,-500.0,0.00045205,120]
[335098576,1723824676416,-500.0,0.00045205,120]
[335098577,1723824676425,-746.07,0.00045205,120]
[335098578,1723824676435,-1036.78,0.00045205,120]
[335098579,1723824676445,-668.74,0.00045205,120]
[335098580,1723824676455,-500.0,0.00045205,120]
[335098581,1723824676464,-500.0,0.00045205,120]
[335098582,1723824676473,-673.85,0.00045205,120]
[335098583,1723824676483,-500.0,0.00045205,120]
[335098584,1723824676493,-500.0,0.00045205,120]
[335098585,1723824676503,-469.53566292,0.00045205,120]
[335098586,1723824676512,-783.75,0.00045205,120]
[335098587,1723824676522,-902.95,0.00045205,120]